Cogmind - Beta 15 @@@ ROGUE MODE // 2025.09.15 @ 00:31:48 Player: Runagate Result: Destroyed by C-40 Crusher with Compactor Performance ------------- Evolutions (3) 1500 Regions Visited (7) 1400 Robots Destroyed (20) 100 Value Destroyed (416) 416 Prototype IDs (0) 0 Alien Tech Used (0) 0 Bonus (0) 0 TOTAL SCORE: 3416 Bonus ------- None Cogmind --------- Core Integrity 0/700 Matter 167/300 Energy 100/100 System Corruption 19% Temperature Cool (0) Movement Core (50) Location -7/Waste Parts ------- > --- POWER (1) -------- (None) > --- PROPULSION (3) --- (None) > --- UTILITY (6) ------ (None) > --- WEAPON (3) ------- (None) > --- INVENTORY (5) ---- Compact Battery (200) Microactuators Hardened Medium Armor Plating EM Pulse Gun Small Laser Peak State ------------ > --- POWER ------------ Ion Engine > --- PROPULSION ------- Wheel Wheel Armored Wheel > --- UTILITY ---------- Heat Sink Large Storage Unit Advanced Visual Processing Unit Improved Signal Interpreter Improved Terrain Scanner Seismic Detector > --- WEAPON ----------- Beam Rifle High-powered Shotgun Katana > --- INVENTORY -------- Light Ion Engine Reinforced Deuterium Engine Fission Core Light Fission Core Wheel Compact Battery Large Matter Pod Microactuators Microactuators Hardened Medium Armor Plating EM Pulse Gun Shock Rifle Small Laser Small Laser Grenade Launcher [Rating: 28] Favorites ----------- Power Ion Engine Engine Ion Engine Propulsion Wheel Wheel Wheel Utility Large Storage Unit Device Seismic Detector Storage Large Storage Unit Processor Improved Signal Interpreter Weapon Small Laser Energy Gun Small Laser Ballistic Gun High-powered Shotgun Launcher Grenade Launcher Slashing Weapon Katana Build | -11 -10 -10 -10 -9 -8 -7 -7 ------- Run | Yrd Mat Min Exi Min Mat Fac Was Slots Evolved 6 | . . . . . 4 2 . Power . | . . . . . . . . Propulsion 1 | . . . . . 1 . . Utility 4 | . . . . . 2 2 . Weapon 1 | . . . . . 1 . . Parts Attached 23 | 9 1 1 . . 9 3 . Power 2 | 2 . . . . . . . Engine 2 | 2 . . . . . . . Core . | . . . . . . . . Reactor . | . . . . . . . . Propulsion 5 | 2 . . . . 2 1 . Treads . | . . . . . . . . Leg . | . . . . . . . . Wheel 5 | 2 . . . . 2 1 . Hover . | . . . . . . . . Flight . | . . . . . . . . Utility 8 | 2 1 . . . 4 1 . Device 4 | 1 . . . . 2 1 . Storage 2 | 1 1 . . . . . . Processor 2 | . . . . . 2 . . Hackware . | . . . . . . . . Protection . | . . . . . . . . Artifact . | . . . . . . . . Weapon 8 | 3 . 1 . . 3 1 . Energy Gun 5 | 3 . . . . 2 . . Energy Cannon . | . . . . . . . . Ballistic Gun 1 | . . . . . 1 . . Ballistic Cannon . | . . . . . . . . Launcher 1 | . . 1 . . . . . Special Weapon . | . . . . . . . . Impact Weapon . | . . . . . . . . Slashing Weapon 1 | . . . . . . 1 . Piercing Weapon . | . . . . . . . . Special Melee Weapon . | . . . . . . . . Unidentified Prototypes . | . . . . . . . . Parts Lost 6 | . . . . . 2 . 4 Power . | . . . . . . . . Propulsion 2 | . . . . . 1 . 1 Utility 4 | . . . . . 1 . 3 Weapon . | . . . . . . . . Highest Loss Streak 3 | . . . . . 2 . 3 To Critical Strikes . | . . . . . . . . Average Backups 9 | 1 6 7 8 9 9 14 14 Power 3 | . 2 2 3 4 4 4 3 Propulsion . | . 2 2 2 2 . . . Utility 2 | . . 1 1 1 2 5 4 Weapon 2 | . 1 2 2 2 2 5 4 Tool/Special . | . . . . . . . . Unused Backups 8 | . . . . 1 . . 7 Power 4 | . . . . . . . 4 Propulsion . | . . . . . . . . Utility 4 | . . . . 1 . . 3 Weapon . | . . . . . . . . Tool/Special . | . . . . . . . . Average Slot Usage (%) 93 | . 100 100 100 100 94 94 72 Engine 10 | . 14 14 14 14 9 7 4 Wheel 25 | . 28 28 28 28 26 23 16 Device 13 | . 14 14 14 14 10 17 20 Storage 10 | . 14 14 14 14 9 7 6 Processor 8 | . . . . . 12 15 13 Energy Gun 16 | . 28 21 14 14 20 8 2 Ballistic Gun 3 | . . . . . 5 7 2 Launcher 3 | . . 7 14 14 . . . Slashing Weapon 1 | . . . . . . 5 6 Peak Build Rating 28 | 7 7 7 9 9 23 28 28 Average Rating 14 | 5 7 7 8 9 17 26 20 On Entrance 11 | . 7 7 7 9 9 23 28 Naked Turns 15 | . . . . . . . 15 Heaviest Build 36 | 12 26 28 28 30 35 36 36 Greatest Support 32 | 20 20 20 20 20 30 32 32 Greatest Overweight (x) 2 | . 1 1 1 1 1 1 2 Average Overweight (x) . | . . 1 1 1 . 1 . Largest Inventory Capacity 15 | 8 15 15 15 15 15 15 15 Average Capacity 13 | 7 8 15 15 15 15 15 13 Most Carried 15 | 5 8 7 10 10 15 15 15 Average Carried 9 | 1 6 7 8 9 9 14 13 Final Capacity 15 | 8 15 15 15 15 15 15 5 Final Carried 15 | 5 7 7 10 9 15 15 5 Class Distribution -------------------- 47% | Mutant 25% | Skirmisher 17% | Gunner 8% | Scavenger-Mutant Dominant Class ---------------- Mutant | -10/Materials Mutant | -10/Mines Mutant | -10/Exiles Mutant | -9/Mines Skirmisher | -8/Materials Scavenger-Mutant | -7/Factory Mutant | -7/Waste Resources | -11 -10 -10 -10 -9 -8 -7 -7 ----------- Run | Yrd Mat Min Exi Min Mat Fac Was Matter Collected 809 | 290 . . . 300 219 . . Remotely . | . . . . . . . . Salvage Created 719 | 182 . . . 185 352 . . Parts 41 | 13 . . . 10 18 . . Haulers Intercepted . | . . . . . . . . Recyclers Shooed 1 | . . . . . 1 . . Parts Field Recycled . | . . . . . . . . Retrieved Matter . | . . . . . . . . Parts Self-Destructed . | . . . . . . . . Prevented . | . . . . . . . . Kills | -11 -10 -10 -10 -9 -8 -7 -7 ------- Run | Yrd Mat Min Exi Min Mat Fac Was Combat Hostiles Destroyed 9 | . . . . 4 5 . . Guns 5 | . . . . . 5 . . AOE 4 | . . . . 4 . . . Classes Destroyed 7 | 3 . . . 3 1 . . Worker 2 | 2 . . . . . . . Builder 3 | . . . . 2 1 . . Tunneler 3 | 3 . . . . . . . Recycler 4 | 1 . . . 2 1 . . Grunt 5 | . . . . 3 2 . . Sentry 3 | . . . . . 3 . . Assembled 1 | . . . . 1 . . . Best Kill Streak 6 | 6 . . . 3 2 . . Combat Bots Only 3 | . . . . 3 2 . . Max Kills in Single Turn 2 | 1 . . . 2 1 . . Gunslinging . | . . . . . . . . Exploded 1 | . . . . 1 . . . Melee . | . . . . . . . . Uniques/NPCs Destroyed . | . . . . . . . . Combat | -11 -10 -10 -10 -9 -8 -7 -7 -------- Run | Yrd Mat Min Exi Min Mat Fac Was Hostile Shots Fired 44 | . . . . 5 20 . 19 Missed 6 | . . . . 1 3 . 2 Hits 38 | . . . . 4 17 . 17 Melee 17 | . . . . . . . 17 Projectile 21 | . . . . 4 17 . . Critical Strikes 6 | . . . . . 2 . 4 Damage Taken 1137 | . . . . 59 343 . 735 Core 803 | . . . . 17 51 . 735 Absorbed by Shields . | . . . . . . . . Core Remaining (%) 94 | 100 . . . 93 90 . . Volleys Fired 55 | 14 2 . . 14 25 . . Largest 3 | 2 2 . . 2 3 . . Hottest 120 | 80 80 . . 70 120 . . Shots Fired 132 | 28 4 . . 26 74 . . Gun 119 | 28 4 . . 14 73 . . Cannon . | . . . . . . . . Launcher 13 | . . . . 12 1 . . Special . | . . . . . . . . Kinetic 15 | . . . . . 15 . . Thermal 80 | 28 4 . . 14 34 . . Explosive 13 | . . . . 12 1 . . Electromagnetic 24 | . . . . . 24 . . Robot Hit Streak 13 | 4 4 . . 13 8 . . Robot Miss Streak 4 | 2 . . . 3 4 . . Penetration Max . | . . . . . . . . Secondary Targets . | . . . . . . . . Shots Hit Robots 78 | 16 4 . . 14 44 . . Core Hits 35 | 7 . . . 15 13 . . Critical Kills 1 | . . . . . 1 . . Critical Parts Destroyed . | . . . . . . . . Critical Strikes 1 | . . . . . 1 . . Destroy 1 | . . . . . 1 . . Melee Attacks . | . . . . . . . . Impact . | . . . . . . . . Slashing . | . . . . . . . . Piercing . | . . . . . . . . Sneak Attacks . | . . . . . . . . Combat Hostiles . | . . . . . . . . Follow-up Attacks . | . . . . . . . . Damage Inflicted 1506 | 176 44 . . 617 669 . . Guns 886 | 176 44 . . 87 579 . . Cannons . | . . . . . . . . Explosions 612 | . . . . 530 82 . . Melee . | . . . . . . . . Ramming 8 | . . . . . 8 . . Kinetic 212 | . . . . . 212 . . Thermal 566 | 176 44 . . 87 259 . . Explosive 530 | . . . . 530 . . . Electromagnetic 190 | . . . . . 190 . . Impact . | . . . . . . . . Slashing . | . . . . . . . . Piercing . | . . . . . . . . Highest Corruption 19 | . . . . . 3 . 19 Average Corruption 5 | . . . . . 2 . 11 Corruption Purged . | . . . . . . . . Corruption Blocked . | . . . . . . . . Effects 15 | . . . . . 8 . 7 Message Errors 3 | . . . . . 1 . 2 Matter Fused 5 | . . . . . 3 . 2 Heat Flow Errors 4 | . . . . . 3 . 1 Energy Discharges 1 | . . . . . . . 1 Data Loss (minor) 1 | . . . . . 1 . . Misdirections 1 | . . . . . . . 1 Overload Shots . | . . . . . . . . Overflow Damage . | . . . . . . . . Projectiles . | . . . . . . . . Explosions . | . . . . . . . . Melee . | . . . . . . . . Knockbacks . | . . . . . . . . Impact . | . . . . . . . . Kinetic . | . . . . . . . . Secondary . | . . . . . . . . Self-Inflicted Damage 21 | . . . . . 21 . . Shots 1 | . . . . . 1 . . Rammed 1 | . . . . . 1 . . Targets Rammed 1 | . . . . . 1 . . Kicked . | . . . . . . . . Crushed . | . . . . . . . . Highest Temperature 222 | 126 56 . . 78 222 . 117 Average Temperature 44 | 46 31 . . 24 51 . 78 Received Heat Transfer 177 | . . . . 33 144 . . Siege Activations . | . . . . . . . . Martial Activations . | . . . . . . . . Shielding Activations . | . . . . . . . . Robots Disrupted . | . . . . . . . . Combat Hostiles . | . . . . . . . . Robots Corrupted . | . . . . . . . . Combat Hostiles . | . . . . . . . . Parts Fried . | . . . . . . . . Impact Corruptions . | . . . . . . . . Robots Melted . | . . . . . . . . Combat Hostiles . | . . . . . . . . Parts Melted 1 | . . . . . 1 . . Heat Transferred 1200 | 400 100 . . 200 500 . . Parts Sabotaged . | . . . . . . . . Parts Stolen . | . . . . . . . . Parts Stripped . | . . . . . . . . Power Chain Reactions 1 | . . . . . 1 . . Alert | -11 -10 -10 -10 -9 -8 -7 -7 ------- Run | Yrd Mat Min Exi Min Mat Fac Was Maximum Alert Level . | . . . . . . . . Low Security (%) 100 | 100 100 100 . 100 100 100 100 Level 1 . | . . . . . . . . Level 2 . | . . . . . . . . Level 3 . | . . . . . . . . Level 4 . | . . . . . . . . Level 5 . | . . . . . . . . High Security . | . . . . . . . . Max Security . | . . . . . . . . Peak Influence 97 | 10 12 . . 97 42 14 . Initial 14 | . . . . . 14 14 . Average 17 | 2 2 . . 60 13 4 . Influence Increases 388 | 30 12 . . 148 198 . . Destroy 0b10 Robot/C 160 | . . . . 60 100 . . Destroy 0b10 Robot/NC 60 | 30 . . . 20 10 . . Destroy Leader 50 | . . . . 10 40 . . Successful Hack 16 | . 12 . . . 4 . . Disable Machine 15 | . . . . . 15 . . Destroy Structure 72 | . . . . 58 14 . . Lose Combat Pursuer 15 | . . . . . 15 . . Influence Decreases 388 | 30 10 2 . 110 205 31 . Entered New Map 43 | . . 2 . . 24 17 . Time Decay 335 | 30 10 . . 110 171 14 . Lost Part 10 | . . . . . 10 . . Squads Dispatched 2 | . 1 . . . 1 . . Investigation 1 | . 1 . . . . . . Extermination . | . . . . . . . . Reinforcement 1 | . . . . . 1 . . Assault . | . . . . . . . . Garrison . | . . . . . . . . Intercept . | . . . . . . . . Searches Triggered . | . . . . . . . . Construction Impeded . | . . . . . . . . Haulers Reinforced . | . . . . . . . . Active Scanning Responses . | . . . . . . . . Cargo Convoy Interrupts . | . . . . . . . . Stealth | -11 -10 -10 -10 -9 -8 -7 -7 --------- Run | Yrd Mat Min Exi Min Mat Fac Was Distress Signals 2 | . . . . . 2 . . Communications Jammed . | . . . . . . . . Distress Signals . | . . . . . . . . Times Spotted 35 | . . . . 16 13 . 6 Peak Tracking Total 6 | . . . . 6 3 . 6 Tactical Retreats 1 | . . . . . 1 . . Traps | -11 -10 -10 -10 -9 -8 -7 -7 ------- Run | Yrd Mat Min Exi Min Mat Fac Was Traps Triggered 3 | . . . . . 2 1 . Indirectly . | . . . . . . . . Trap Hack Attempts . | . . . . . . . . Triggered . | . . . . . . . . Disarmed . | . . . . . . . . Reprogrammed . | . . . . . . . . Reused . | . . . . . . . . Traps Extracted . | . . . . . . . . Installed 5 | . . . . 5 . . . Triggered . | . . . . . . . . Machines | -11 -10 -10 -10 -9 -8 -7 -7 ---------- Run | Yrd Mat Min Exi Min Mat Fac Was Machines Disabled 1 | . . . . . 1 . . Max in Single Turn 1 | . . . . . 1 . . Machines Repaired . | . . . . . . . . Machines Dismantled . | . . . . . . . . Machines Sabotaged . | . . . . . . . . Overloaded Fab Kills . | . . . . . . . . Hacking | -11 -10 -10 -10 -9 -8 -7 -7 --------- Run | Yrd Mat Min Exi Min Mat Fac Was Machines Accessed 2 | . 1 . . . 1 . . Terminals 2 | . 1 . . . 1 . . Fabricators . | . . . . . . . . Repair Stations . | . . . . . . . . Recycling Units . | . . . . . . . . Scanalyzers . | . . . . . . . . Garrison Access . | . . . . . . . . Total Hacks 7 | . 5 . . . 2 . . Successful 4 | . 3 . . . 1 . . Failed 3 | . 2 . . . 1 . . Catastrophic . | . . . . . . . . Database Lockouts . | . . . . . . . . Manual 3 | . 2 . . . 1 . . Terminals 7 | . 5 . . . 2 . . Fabricators . | . . . . . . . . Repair Stations . | . . . . . . . . Recycling Units . | . . . . . . . . Scanalyzers . | . . . . . . . . Garrison Access . | . . . . . . . . Terminal Hacks 4 | . 3 . . . 1 . . Dispatch Records 1 | . . . . . 1 . . Surveillance Status 1 | . 1 . . . . . . Investigation Status 1 | . 1 . . . . . . Hauler Manifests 1 | . 1 . . . . . . Fabricator Hacks . | . . . . . . . . Repair Station Hacks . | . . . . . . . . Recycling Unit Hacks . | . . . . . . . . Scanalyzer . | . . . . . . . . Garrison Access Hacks . | . . . . . . . . Unauthorized Hacks . | . . . . . . . . Terminals . | . . . . . . . . Fabricators . | . . . . . . . . Repair Stations . | . . . . . . . . Recycling Units . | . . . . . . . . Scanalyzers . | . . . . . . . . Garrison Access . | . . . . . . . . Data Cores Recovered . | . . . . . . . . Used . | . . . . . . . . Hacking Detections 2 | . 1 . . . 1 . . Full Trace Events 1 | . 1 . . . . . . Feedback Events . | . . . . . . . . Feedback Blocked . | . . . . . . . . Robot Schematics Acquired . | . . . . . . . . Robots Built . | . . . . . . . . Authchips . | . . . . . . . . Time . | . . . . . . . . Total Robot Build Rating . | . . . . . . . . Part Schematics Acquired . | . . . . . . . . Parts Built . | . . . . . . . . Authchips . | . . . . . . . . Time . | . . . . . . . . Total Part Build Rating . | . . . . . . . . Parts Repaired . | . . . . . . . . Time . | . . . . . . . . Parts Recycled . | . . . . . . . . Recycled Matter . | . . . . . . . . Retrieved Matter . | . . . . . . . . Retrieved Components . | . . . . . . . . Parts Scanalyzed . | . . . . . . . . Part Schematics Acquired . | . . . . . . . . Parts Damaged . | . . . . . . . . Bothacking | -11 -10 -10 -10 -9 -8 -7 -7 ------------ Run | Yrd Mat Min Exi Min Mat Fac Was Used RIF Installer . | . . . . . . . . Robots Hacked . | . . . . . . . . Non-combat . | . . . . . . . . Combat . | . . . . . . . . Robot Hacks Applied . | . . . . . . . . Relay Couplers Released . | . . . . . . . . Fabnet Peak Effective % . | . . . . . . . . Robots Rewired . | . . . . . . . . Allies Hacked . | . . . . . . . . Hacks Repelled . | . . . . . . . . Allies | -11 -10 -10 -10 -9 -8 -7 -7 -------- Run | Yrd Mat Min Exi Min Mat Fac Was Total Allies 1 | . . . . . . . 1 Largest Group 1 | . . . . . . . 1 Highest-Rated Group 31 | . . . . . . . 31 Highest-Rated Ally 31 | . . . . . . . 31 Total Orders . | . . . . . . . . Ally Attacks 1 | . . . . . . . 1 Total Damage 20 | . . . . . . . 20 Kills . | . . . . . . . . Allies Corrupted . | . . . . . . . . Allies Melted . | . . . . . . . . Intel | -11 -10 -10 -10 -9 -8 -7 -7 ------- Run | Yrd Mat Min Exi Min Mat Fac Was Active Infowar (turns) 1222 | 32 82 50 41 241 565 83 128 Optics 488 | . . . . . 277 83 128 Sensors 70 | . . . . . 70 . . Terrain 194 | . . . . . . 69 125 Seismic 967 | 32 82 50 41 241 338 58 125 Robot Analysis Total . | . . . . . . . . Derelict Logs Recovered 1 | . . 1 . . . . . Drone Launches . | . . . . . . . . Drone Recoveries . | . . . . . . . . Exploration | -11 -10 -10 -10 -9 -8 -7 -7 ------------- Run | Yrd Mat Min Exi Min Mat Fac Was Turns Passed 1340 | 135 82 50 41 241 565 83 143 Spaces Moved 1042 | 91 84 51 40 187 376 81 132 Core 4 | 1 . . . . . . 3 Treads . | . . . . . . . . Legs . | . . . . . . . . Wheels 1038 | 90 84 51 40 187 376 81 129 Hover . | . . . . . . . . Flight . | . . . . . . . . Fastest Speed 50 | 50 80 95 95 95 80 95 50 Average Speed 91 | 79 81 95 95 95 93 96 92 Slowest Speed 110 | 80 95 95 95 95 95 98 110 Overloaded Moves . | . . . . . . . . Propulsion Burnouts . | . . . . . . . . Robots Hopped . | . . . . . . . . Potential Cave-ins . | . . . . . . . . Cave-ins Triggered . | . . . . . . . . Exploration Rate (%) 23 | 4 21 11 9 33 28 3 82 Regions Visited 7 Branch Regions 3 Pre-discovered Areas . | . . . . . . . . Known Exits Taken 1 | . . . . . 1 . . Unknown Exits Taken 5 | 1 1 1 1 1 . . . Scrap Searched . | . . . . . . . . Spaces Dug . | . . . . . . . . Terrain Destroyed 101 | . . . . 89 12 . . Melee . | . . . . . . . . Projectile . | . . . . . . . . AOE 101 | . . . . 89 12 . . Terrain Rammed . | . . . . . . . . Walls Destroyed . | . . . . . . . . Machines Disabled . | . . . . . . . . Actions | -11 -10 -10 -10 -9 -8 -7 -7 --------- Run | Yrd Mat Min Exi Min Mat Fac Was Total 1297 | 120 93 51 42 224 528 85 154 Wait 146 | 2 4 . . 15 106 . 19 Move 1036 | 90 83 50 39 186 375 81 132 Hop . | . . . . . . . . Pick Up 18 | 5 2 . 3 1 7 . . Fast Attach 11 | 7 . . . . 3 1 . Attach 4 | . . . . . 3 1 . Detach . | . . . . . . . . Swap 16 | 2 1 1 . 1 8 2 1 Drop 5 | . 1 . . 2 . . 2 Fire 55 | 14 2 . . 14 25 . . Melee . | . . . . . . . . Ram 1 | . . . . . 1 . . Kick . | . . . . . . . . Crush . | . . . . . . . . Escape Stasis . | . . . . . . . . Rewire . | . . . . . . . . Trap 5 | . . . . 5 . . . Miscellaneous . | . . . . . . . . Route ------- -11/Scrapyard -10/Materials -10/Mines -10/Exiles -9/Mines -8/Materials -7/Factory -7/Waste History --------- Turn | Location | Event 34 | -11/Scrapyard | Discovered new exit (range 16) 136 | -11/Scrapyard | Entered Materials 204 | -10/Materials | Discovered new exit (range 13) 218 | -10/Materials | Entered Mines 250 | -10/Mines | Deemed a non-threat by the Exiles lab entrance 250 | -10/Mines | Discovered new exit (range 5) 268 | -10/Mines | Entered Exiles 298 | -10/Exiles | Discovered new exit (range 14) 309 | -10/Exiles | Entered Mines 317 | -9/Mines | Build established: Mutant 445 | -9/Mines | Assembled infested the area 499 | -9/Mines | Found a hidden stash of uninstalled traps 543 | -9/Mines | Discovered new exit (range 7) 550 | -9/Mines | Entered Materials 550 | -8/Materials | Evolved 4 slots: Propulsion x1, Utility x2, Weapon x1 1082 | -8/Materials | Discovered new exit (range 19) 1099 | -8/Materials | Identified exit to Factory 1115 | -8/Materials | Entered Factory 1115 | -7/Factory | Evolved 2 slots: Utility x2 1198 | -7/Factory | Sucked down chute 1198 | -7/Factory | Entered Waste 1199 | -7/Waste | Met a frightened Derelict 1213 | -7/Waste | EMP discharged 1231 | -7/Waste | Spotted C-40 Crusher 1263 | -7/Waste | Spotted C-40 Crusher 1268 | -7/Waste | Spotted C-40 Crusher 1278 | -7/Waste | Spotted C-40 Crusher 1285 | -7/Waste | Crushed by Compactor (1 part destroyed, 2 dropped) 1302 | -7/Waste | Spotted C-40 Crusher 1303 | -7/Waste | Spotted C-40 Crusher 1313 | -7/Waste | EMP discharged 1313 | -7/Waste | System corruption reached 10% 1320 | -7/Waste | Crushed by Compactor (1 part destroyed, 2 dropped) 1323 | -7/Waste | Crushed by Compactor (1 part destroyed, 2 dropped) 1326 | -7/Waste | Crushed by Compactor (1 part destroyed, 1 dropped) 1335 | -7/Waste | Core integrity fell below 50% 1339 | -7/Waste | Core integrity fell below 20% 1341 | -7/Waste | Destroyed by C-40 Crusher with Compactor Last Messages --------------- 01303_ ALERT: Foreign system detected. Charging EMP. 01313_ System corrupted (+10). 01320_ Lrg. Storage Unit crushed. 01320_ Wheel crushed. 01320_ Heat Sink crushed. 01323_ Sml. Laser crushed. 01323_ Lrg. Matter Pod crushed. 01323_ Rigged Lgt. Fission Core explodes. 01323_ Rigged Rnf. Deuterium Engine crushed. 01323_ Imp. Terrain Scanner crushed. 01323_ Seismic Detector crushed. 01323_ Katana crushed. 01324_ E=HR=AKQ%IHW1X4M3DIUBYW0PTT#WAPDDL3CI0I3 01324_ Lgt. Ion Engine crushed. 01324_ Rigged Fission Core explodes. 01326_ Imp. Signal Interpreter crushed. 01326_ Adv. Visual Processing Unit crushed. 01328_ Grenade Launcher crushed. 01331_ Arm. Wheel crushed. Map ----- +----------------------------------------------------+ | ??????????# ?#?????????????????????????????? | | ??????????# ????????????#??????????????????? | | ?? ?????# ???????????????????????????????? | | ?????? ???????????????????????????????? | | ??????? ??????######???????????????????? | | # #??????# #??????# #???????????????????? | | # #??????# #??????# #???????????????????? | | # #??????# #??????# #???????????????????? | | # #??????# #??????# #???????????????????? | | # #??????# ######## ###?????????????????? | | # #??????# #?????????????????? | | # #??????# #?????????????????? | | # #??????# #?????????????????? | | # #??????# #?????????????????? | | # #??????# ######## ###?????????????????? | | # #??????# #?#??#?# #??#????????#???????? | | # #??????# #????#?# #???????????????????? | | # #????#?# #????#?# #???????????????????? | | # ######## #??????# ###?????????????????? | | # #??#??## CC #?????????????????? | | # =#????## CC #?????????????????? | | # #????? CCCC #?????????????????? | | # #???### CCCC #???????#?????????? | | # ######## #????# CCCC ###?????????????????? | | # #??????# #?????#CCCC #???????????????????? | | # #??#???# #??????#@CC #???????????????????? | | # #??????# #??????# CC #???????????????????? | | # #??????# = #?????## #??????? ? ?????????? | | #??????# #??????# ??????????????????? | | #??????# #?#????# ????????????????? | | #??????# #??????# ???????????????? | | #??????# #??????# ??? ?????????? | | # #??????#] #??????# #### ????????????? | | # #??????# #??????# #??? ??????????? | | # #??????# #??????# #??#? ????????? | | # #??????# #??????# #?????######????????? | | # #??????# #??????# #?#?????????????????? | | ??????######????#? ???????????????????? | | ????????????????? ???????????????????? | | #???????????????? ???????????????????? | | #???????????????? ??????????????????? | | #???????????????? ??????????????????? | | #????????????????? ??????????????????? | | ] #?????????????????] ???????????????????? | | #????????????????? ?????????????????????? | | ########?????????????????????????????????????????? | | ?????????????????????????????????????????????????? | | ?????????????????????????????????????????????????? | | ?????????????????????????????????????????????????? | | ?????????????????????????????????????????????????? | +----------------------------------------------------+ Best States ------------- Heat Dissipation 44 Energy Generation 10 Energy Capacity 250 Matter Stores 300 Matter Capacity 300 Sight Range 20 Robot Scan Range 15 Terrain Scan Range 16 Terrain Scan Density 10 Evasion (%) 44 Item Schematics ----------------- None Robot Schematics ------------------ None Fabricated ------------ Nothing Repaired ---------- Nothing Alien Tech Used ----------------- None Achievements -------------- None Challenges ------------ None Game ------ Seed JunkCoreNukerbomber Manual? 0 Play Time 00:13:08 Cumulative 66.2 hours Start 2025.09.15 @ 00:19:32 End 2025.09.15 @ 00:31:48 Sessions 1 Manual Loads 0 Difficulty Rogue Special Mode None Game No. 136 Rogue 134 Adventurer 0 Explorer 2 Win Type - Total 0 Types 0/0/0/0/0/0/0/0/0/0 Lore% 27 Gallery% 42 Achievement% 39 Wizard Run 0 Options --------- Layout 2 ASCII 0 Keyboard 1 Movement Arrows Keybinds 0 Fullscreen 1 Font 28/SmallcapsGlow Map View 50x49 Zoom Use 0% Tactical HUD 1 Map Filters NONE Filters NONE Steam 1 RUN: 18c80dd8-3604-4bac-acc3-57f2a17d3ffb